fUSD/lending_fUSD_20240423
["ID","MTS","AMOUNT","RATE_DAILY","PERIOD"]
[323317947,1713887453092,-500.0,0.00012894,2]
[323317948,1713887453102,-1000.0,0.00012895,2]
[323317949,1713887453112,-1000.0,0.00012895,2]
[323317950,1713887453123,-500.0,0.00012895,2]
[323317951,1713887453133,-500.0,0.00012895,2]
[323317952,1713887453142,-150.0,0.00012897,2]
[323317953,1713887453152,-150.0,0.00012897,2]
[323317954,1713887453162,-6944.86653751,0.000129,2]
[323317955,1713887453174,-590.94906653,0.000129,2]
[323317956,1713887453184,-590.94906653,0.000129,2]
[323317957,1713887453194,-590.94906653,0.000129,2]
[323317958,1713887453204,-590.94906653,0.000129,2]
[323317959,1713887453215,-590.94906653,0.000129,2]
[323317960,1713887453225,-590.94906653,0.000129,2]
[323317961,1713887453235,-590.94906653,0.000129,2]
[323317962,1713887453478,-590.94906653,0.000129,2]
[323317963,1713887453489,-1334.62479108,0.000129,2]
[323317964,1713887453499,-247.07252518,0.000129,2]
[323317965,1713887453509,-150.0,0.00012905,2]
[323317966,1713887453518,-150.0,0.00012908,2]
[323317967,1713887453528,-150.0,0.00012914,2]
[323317968,1713887453537,-150.0,0.00012916,2]
[323317969,1713887453547,-150.0,0.00012917,2]
[323317970,1713887453557,-150.0,0.00012918,2]
[323317971,1713887453566,-150.0,0.00012919,2]
[323317972,1713887453575,-150.0,0.0001292,2]
[323317973,1713887453585,-150.0,0.0001292,2]
[323317974,1713887453595,-150.0,0.00012921,2]
[323317975,1713887453605,-150.0,0.00012937,2]
[323317976,1713887453615,-150.0,0.0001294,2]
[323317977,1713887453624,-150.0,0.00012941,2]
[323317978,1713887453634,-150.0,0.00012943,2]
[323317979,1713887453643,-150.0,0.00012954,2]
[323317980,1713887453653,-254.91292133,0.0001297,2]
[323317981,1713887453662,-185.35406833,0.00012979,2]
[323317982,1713887453672,-4170.91282047,0.00012979,2]
[323317983,1713887453683,-2000.0,0.00012979,2]
[323317984,1713887453693,-1901827.30161495,0.0001298,2]
[323317985,1713887453704,-305.1489132,0.00012986,2]
[323317986,1713887453714,-323.658928,0.00012986,2]
[323317987,1713887453723,-342.1689429,0.00012986,2]
[323317988,1713887453733,-360.6789577,0.00012986,2]
[323317989,1713887453743,-379.1889725,0.00012986,2]
[323317990,1713887453753,-286.6388984,0.00012987,2]
[323317991,1713887453762,-2207.0,0.0001299,2]
[323317992,1713887453771,-364763.91288434,0.00012995,2]
[323317993,1713887453780,-493.17264,0.00012996,2]
[323317994,1713887453790,-2465768.90512,0.00013,2]
[323317995,1713887453810,-89534.59415311,0.00013,2]
[323317996,1713887453821,-123399.88844957,0.00013,2]
[323317997,1713887453848,-342.0423,0.00013,2]
[323317998,1713887453860,-3220.47496843,0.00013,2]
[323317999,1713887453886,-34962.86130738,0.00013,2]
[323318000,1713887453897,-3268.0669238,0.00013,2]
[323318001,1713887454464,-365.0,0.00011223,2]
[323318002,1713887454476,-1217.46,0.00011223,2]
[323318003,1713887454488,-610.61,0.00011223,2]
[323318004,1713887454500,-419.64470594,0.00011223,2]
[323318005,1713887454542,-1088.83831732,0.00011223,2]
[323318006,1713887455082,-667.29737776,0.00011223,2]
[323318007,1713887455094,-2972.63699716,0.00011223,2]
[323318008,1713887455104,-67.56300284,0.00011769,2]
[323318009,1713887455369,-980.48581676,0.00011769,2]
[323318010,1713887455382,-5326.8593589,0.00012181,2]
[323318011,1713887455391,-215.1393344,0.00012893,2]
[323318012,1713887455400,-187376.82046309,0.00013,2]
[323318013,1713887455421,-215.1393344,0.000129,2]
[323318014,1713887455432,-132984.86066564,0.00013,2]
[323318015,1713887455445,-2235.77644837,0.00013,2]
[323318020,1713887948976,210.88,9.563e-05,2]
[323318021,1713887958641,600.0,0.000251,120]
[323318023,1713888109612,13509.93,0.000112,2]
[323318043,1713888387089,299.38047402,0.00025,120]
[323318059,1713888444548,200.33,9.473e-05,2]
[323318101,1713888592535,260.87285913,0.00010961,2]
[323318102,1713888593071,19677.20707183,9.473e-05,2]
[323318103,1713888594036,288.4630602,9.473e-05,2]
[323318104,1713888594175,993.25231044,9.473e-05,2]
[323318105,1713888595463,1471.71240548,9.473e-05,2]
[323318106,1713888595608,3165.47765127,9.473e-05,2]
[323318108,1713888596696,20172.44350271,9.473e-05,2]
[323318109,1713888597039,1933.20335434,9.473e-05,2]
[323318110,1713888597070,399.27306284,9.473e-05,2]
[323318111,1713888597155,155.0,9.473e-05,2]
[323318112,1713888598879,150.0,9.473e-05,2]
[323318113,1713888598902,170.0216552,9.473e-05,2]
[323318114,1713888602185,150.0,7.578e-05,2]
[323318115,1713888602208,150.0,7.578e-05,2]
[323318116,1713888602230,150.0,7.578e-05,2]
[323318117,1713888602252,95.91901904,7.578e-05,2]
[323318118,1713888606591,-208.68480832,0.00011097,2]
[323318119,1713888606927,150.0,9.473e-05,2]
[323318120,1713888606949,150.0,9.473e-05,2]
[323318121,1713888606969,150.0,9.473e-05,2]
[323318122,1713888606989,150.0,9.473e-05,2]
[323318123,1713888607009,150.0,9.473e-05,2]
[323318124,1713888607033,116.38239461,9.473e-05,2]
[323318125,1713888609514,150.0,9.473e-05,2]
[323318126,1713888609535,116.64465607,9.473e-05,2]
[323318127,1713888609967,150.0,9.473e-05,2]
[323318128,1713888609991,138.4630602,9.473e-05,2]
[323318129,1713888613081,19677.20707183,9.473e-05,2]
[323318130,1713888613121,180.02697293,9.473e-05,2]
[323318131,1713888614864,150.0,9.473e-05,2]
[323318132,1713888614884,145.36518114,9.473e-05,2]
[323318133,1713888615140,4.63481886,9.473e-05,2]
[323318134,1713888615160,150.0,9.473e-05,2]
[323318135,1713888615180,150.0,9.473e-05,2]
[323318136,1713888615200,150.0,9.473e-05,2]
[323318137,1713888615220,150.0,9.473e-05,2]
[323318138,1713888615241,150.0,9.473e-05,2]
[323318139,1713888615262,150.0,9.473e-05,2]
[323318140,1713888615283,567.07758662,9.473e-05,2]
[323318141,1713888615588,150.0,9.473e-05,2]
[323318142,1713888615613,150.0,9.473e-05,2]
[323318143,1713888615633,150.0,9.473e-05,2]
[323318144,1713888615653,150.0,9.473e-05,2]
[323318145,1713888615673,150.0,9.473e-05,2]
[323318146,1713888615692,150.0,9.473e-05,2]
[323318147,1713888615713,150.0,9.473e-05,2]
[323318148,1713888615735,150.0,9.473e-05,2]
[323318149,1713888615755,150.0,9.473e-05,2]
[323318150,1713888615777,1287.89804273,9.473e-05,2]
[323318151,1713888616953,150.0,9.473e-05,2]
[323318152,1713888616974,150.0,9.473e-05,2]
[323318153,1713888616996,150.0,9.473e-05,2]
[323318154,1713888617016,150.0,9.473e-05,2]
[323318155,1713888617036,150.0,9.473e-05,2]
[323318156,1713888617056,150.0,9.473e-05,2]
[323318157,1713888617081,150.0,9.473e-05,2]
[323318158,1713888617101,150.0,9.473e-05,2]
[323318159,1713888617122,88.80223623,9.473e-05,2]
[323318160,1713888617159,61.19776377,9.473e-05,2]
[323318161,1713888617179,150.0,9.473e-05,2]
[323318162,1713888617199,150.0,9.473e-05,2]
[323318163,1713888617220,38.07529907,9.473e-05,2]
[323318164,1713888618601,150.0,9.473e-05,2]
[323318165,1713888618622,150.0,9.473e-05,2]
[323318166,1713888618643,150.0,9.473e-05,2]
[323318167,1713888618663,150.0,9.473e-05,2]
[323318168,1713888618684,253.75912196,9.473e-05,2]
[323318169,1713888618705,150.0,9.473e-05,2]
[323318170,1713888618728,150.0,9.473e-05,2]
[323318171,1713888618753,150.0,9.473e-05,2]
[323318172,1713888618776,18868.68438075,9.473e-05,2]
[323318173,1713888622150,549.27276469,7.578e-05,2]
[323318174,1713888625958,261.92470093,9.473e-05,2]
[323318175,1713888625980,3.44541279,9.473e-05,2]
[323318176,1713888626934,777.0838034,9.473e-05,2]
[323318177,1713888629059,19677.20707183,9.473e-05,2]
[323318178,1713888630952,1074.00186352,9.473e-05,2]
[323318183,1713888632515,-504.57979323,0.00011069,2]
[323318184,1713888632527,-87.42020677,0.00011069,2]
[323318185,1713888632537,-5230.62519168,0.00011097,2]
[323318186,1713888632546,-180.99,0.00011297,2]
[323318187,1713888632556,-2162.54342352,0.00011402,2]
[323318188,1713888632592,-17.19394882,0.00011402,2]
[323318189,1713888632601,-232.46,0.00011403,2]
[323318190,1713888632610,-66.34605118,0.00011429,2]
[323318191,1713888632632,-341.65394882,0.00011429,2]
[323318192,1713888632642,-166.66,0.00011455,2]
[323318193,1713888632651,-9180.37734417,0.0001157,7]
[323318194,1713888632661,-3165.98759916,0.0001157,2]
[323318195,1713888632671,-1294.06229619,0.0001157,2]
[323318196,1713888632681,-166.66,0.00011575,2]
[323318197,1713888632691,-166.66,0.00011694,2]
[323318198,1713888632701,-200.33,0.00011736,2]
[323318199,1713888632710,-2533.72808082,0.000118,2]
[323318200,1713888632720,-1231.6318,0.00011807,2]
[323318201,1713888632731,-166.66,0.00011814,2]
[323318202,1713888632742,-10453.640373,0.00011846,2]
[323318203,1713888632751,-150.0,0.00011906,2]
[323318204,1713888632760,-453.94855884,0.00011906,2]
[323318205,1713888632773,-46.04144116,0.00011906,2]
[323318206,1713888632782,-271.02379363,0.00011907,2]
[323318207,1713888632794,-10679.590396,0.00011907,2]
[323318210,1713888633049,399.27306284,9.473e-05,2]
[323318211,1713888633996,2637.89804273,9.473e-05,2]
[323318212,1713888634081,170.57,8.824e-05,2]
[323318213,1713888634325,170.57,9.706e-05,2]
[323318214,1713888634781,170.57,0.00010589,2]
[323318215,1713888636606,20172.44350271,9.473e-05,2]
[323318223,1713888638284,-200.0,0.0001103,2]
[323318225,1713888638294,-170.57,0.00011471,2]
[323318227,1713888638303,-66.98,0.00011907,2]
[323318230,1713888638314,-5731.89280292,0.00011907,2]
[323318259,1713888638916,-738.294,0.00011907,2]
[323318263,1713888638942,-5864.94257552,0.00011907,2]
[323318265,1713888638954,-249.08069614,0.00011908,2]
[323318267,1713888638963,-500.0,0.00011908,2]
[323318269,1713888638974,-500.0,0.00011908,2]
[323318271,1713888638983,-500.0,0.00011908,2]
[323318273,1713888638992,-500.0,0.00011908,2]
[323318275,1713888639002,-500.0,0.00011908,2]
[323318277,1713888639012,-500.0,0.00011908,2]
[323318279,1713888639023,-500.0,0.00011908,2]
[323318281,1713888639034,-500.0,0.00011908,2]
[323318283,1713888639043,-604.61,0.00011908,2]
[323318285,1713888639053,-500.0,0.00011908,2]
[323318287,1713888639062,-500.0,0.00011908,2]
[323318289,1713888639071,-500.0,0.00011908,2]
[323318291,1713888639080,-500.0,0.00011908,2]
[323318293,1713888639093,-500.0,0.00011908,2]
[323318295,1713888639102,-500.0,0.00011908,2]
[323318297,1713888639111,-500.0,0.00011908,2]
[323318299,1713888639120,-500.0,0.00011908,2]
[323318301,1713888639129,-589.79,0.00011908,2]
[323318303,1713888639139,-819.74,0.00011908,2]
[323318305,1713888639148,-500.0,0.00011908,2]
[323318307,1713888639157,-260.64753295,0.00011908,2]
[323318312,1713888639190,-239.35246705,0.00011908,2]
[323318314,1713888639200,-306.84721049,0.00011908,2]
[323318315,1713888639209,-500.0,0.00011908,2]
[323318316,1713888639219,-500.0,0.00011908,2]
[323318317,1713888639228,-500.0,0.00011908,2]
[323318318,1713888639238,-500.0,0.00011908,2]
[323318319,1713888639247,-500.0,0.00011908,2]
[323318320,1713888639257,-339.76985641,0.00011908,2]
[323318321,1713888639269,-160.23014359,0.00011908,2]
[323318322,1713888639278,-426.3,0.00011908,2]
[323318323,1713888639287,-113.46985641,0.00011908,2]
[323318324,1713888639299,-386.53014359,0.00011908,2]
[323318325,1713888639309,-624.07,0.00011908,2]
[323318327,1713888639318,-500.0,0.00011908,2]
[323318329,1713888639327,-500.0,0.00011908,2]
[323318331,1713888639340,-500.0,0.00011908,2]
[323318332,1713888639350,-500.0,0.00011908,2]
[323318335,1713888639359,-218.2923496,0.00011908,2]
[323318337,1713888639371,-281.7076504,0.00011908,2]
[323318339,1713888639380,-500.0,0.00011908,2]
[323318341,1713888639390,-500.0,0.00011908,2]
[323318343,1713888639399,-500.0,0.00011908,2]
[323318344,1713888639408,-166.66,0.00011933,2]
[323318347,1713888639417,-2750.0,0.00012,2]
[323318348,1713888639427,-166.66,0.00012052,2]
[323318350,1713888639436,-1191.9588,0.00012081,2]
[323318352,1713888639445,-408.45355212,0.00012179,2]
[323318354,1713888639455,-210.6145537,0.00012179,2]
[323318356,1713888639465,-236.51827636,0.00012179,2]
[323318358,1713888639474,-155.0,0.00012179,2]
[323318360,1713888639484,-217.83894532,0.00012179,2]
[323318444,1713888640301,-1134.0589799,0.00011807,2]
[323318448,1713888640340,-686.74490659,0.00011807,2]
[323318450,1713888640350,-2159.91443963,0.00012179,2]
[323318452,1713888640362,-394.18780526,0.00012179,2]
[323318460,1713888640437,-659.37361713,0.00012179,2]
[323318462,1713888640448,-207.74230146,0.00012179,2]
[323318465,1713888640457,-155.0,0.00012179,2]
[323318466,1713888640468,-155.0,0.00012179,2]
[323318468,1713888640477,-161.51762488,0.00012179,2]
[323318471,1713888640487,-2321.74176097,0.00012179,2]
[323318473,1713888640498,-157.23443646,0.00012179,2]
[323318475,1713888640509,-155.0,0.00012179,2]
[323318477,1713888640520,-155.0,0.00012179,2]
[323318479,1713888640529,-313.74231263,0.00012179,2]
[323318481,1713888640538,-214.53129146,0.00012179,2]
[323318483,1713888640548,-3759.60382736,0.00012179,2]
[323318485,1713888640559,-179.02783413,0.00012179,2]
[323318487,1713888640568,-200.30895975,0.00012179,2]
[323318489,1713888640578,-500.0,0.0001218,2]
[323318491,1713888640593,-641.09,0.0001218,2]
[323318493,1713888640602,-30.06416004,0.00012181,2]
[323318495,1713888640615,-469.93583996,0.00012181,2]
[323318497,1713888640624,-500.0,0.00012181,2]
[323318499,1713888640635,-500.0,0.00012181,2]
[323318501,1713888640645,-869.44,0.00012181,2]
[323318503,1713888640654,-532.72,0.00012181,2]
[323318505,1713888640665,-108.18146009,0.00012181,2]
[323318507,1713888640677,-391.81853991,0.00012181,2]
[323318509,1713888640686,-397.22882008,0.00012181,2]
[323318511,1713888640698,-102.77117992,0.00012181,2]
[323318513,1713888640708,-500.0,0.00012181,2]
[323318515,1713888640718,-500.0,0.00012181,2]
[323318517,1713888640728,-609.4,0.00012181,2]
[323318519,1713888640742,-500.0,0.00012181,2]
[323318521,1713888640753,-500.0,0.00012181,2]
[323318523,1713888640763,-500.0,0.00012181,2]
[323318525,1713888640773,-509.88,0.00012181,2]
[323318527,1713888640783,-500.0,0.00012181,2]
[323318529,1713888640791,-500.0,0.00012181,2]
[323318531,1713888640800,-500.0,0.00012181,2]
[323318533,1713888640812,-500.0,0.00012181,2]
[323318535,1713888640822,-500.0,0.00012181,2]
[323318537,1713888640831,-500.0,0.00012181,2]
[323318539,1713888640845,-500.0,0.00012181,2]
[323318541,1713888640855,-500.0,0.00012181,2]
[323318543,1713888640865,-500.0,0.00012181,2]
[323318546,1713888640876,-333.81882008,0.00012181,2]
[323318550,1713888640912,-166.18117992,0.00012181,2]
[323318552,1713888640921,-515.28958491,0.00012181,2]
[323318554,1713888640930,-500.0,0.00012181,2]
[323318556,1713888640938,-500.0,0.00012181,2]
[323318558,1713888640948,-102.56884851,0.00012181,2]
[323318560,1713888640962,-397.43115149,0.00012181,2]
[323318562,1713888640972,-452.56106839,0.00012181,2]
[323318581,1713888641155,1471.71240548,9.473e-05,2]
[323318638,1713888643430,-1078.79243425,0.00012,2]
[323318639,1713888643442,-1599.74003416,0.00012,2]
[323318640,1713888643593,-390.8982613,0.00012,2]
[323318641,1713888643603,-12529.1017387,0.00012081,2]
[323318642,1713888643614,-641.82514,0.00012081,2]
[323318643,1713888643755,-553.93911074,0.00012081,2]
[323318644,1713888644017,-332.86870337,0.00012081,2]
[323318646,1713888644642,179.66447995,0.0001,2]
[323318652,1713888646461,-2397.51560316,0.00012081,2]
[323318653,1713888646570,-2343.36758848,0.00012081,2]
[323318657,1713888656247,-670.16546643,0.00012081,2]
[323318658,1713888656460,408.53284942,0.0001,2]
[323318659,1713888656499,19677.20707183,9.473e-05,2]
[323318660,1713888656666,429.54249029,0.00011,2]
[323318661,1713888657670,1074.00186352,9.473e-05,2]
[323318662,1713888657732,399.27306284,9.473e-05,2]
[323318663,1713888657898,1374.34488026,9.473e-05,2]
[323318664,1713888658566,20172.44350271,9.473e-05,2]
[323318665,1713888660019,1471.71240548,9.473e-05,2]
[323318669,1713888662655,179.53791079,0.0001,2]
[323318670,1713888671562,1374.34488026,9.473e-05,2]
[323318671,1713888672671,2144.51057233,9.473e-05,2]
[323318672,1713888675050,399.27306284,9.473e-05,2]
[323318673,1713888675089,19677.20707183,9.473e-05,2]
[323318674,1713888676929,408.53284942,0.0001,2]
[323318675,1713888716743,155.0,0.0001087,2]
[323318676,1713888718464,194.61821444,0.0001087,2]
[323318677,1713888725562,399.27306284,0.0001,2]
[323318679,1713888727659,1471.71240548,0.0001,2]
[323318680,1713888727780,173.06930294,0.0001,2]
[323318681,1713888731468,559.5549709,0.0001,2]
[323318682,1713888731573,19677.20707183,0.0001,2]
[323318683,1713888734069,1374.34488026,0.0001,2]
[323318684,1713888741602,189.05958933,0.0001,2]
[323318685,1713888741670,1471.71240548,0.0001,2]
[323318686,1713888741740,610.98228989,0.00011,2]
[323318687,1713888743567,19677.20707183,0.0001,2]
[323318688,1713888745580,1127.706,0.00010969,2]
[323318689,1713888745773,173.06930294,0.0001,2]
[323318690,1713888747486,559.5549709,0.0001,2]
[323318691,1713888748071,1374.34488026,0.0001,2]
[323318692,1713888754647,179.66447995,0.0001,2]
[323318693,1713888759737,1471.71240548,0.0001,2]
[323318694,1713888761580,19677.20707183,0.0001,2]
[323318695,1713888763775,303.925539,0.0001,2]
[323318696,1713888764065,1374.34488026,0.0001,2]
[323318697,1713888769936,559.5549709,0.0001,2]
[323318698,1713888777662,1471.71240548,0.0001,2]
[323318699,1713888780608,1374.34488026,0.0001,2]
[323318700,1713888780710,179.54003563,0.0001,2]
[323318701,1713888781570,19677.20707183,0.0001,2]
[323318702,1713888785333,301.40779328,0.00010914,2]
[323318703,1713888789463,559.5549709,0.0001,2]
[323318704,1713888796946,3471.71,0.00010725,2]
[323318705,1713888798465,1374.34488026,0.0001,2]
[323318706,1713888799596,19677.20707183,0.0001,2]
[323318707,1713888799678,1471.71240548,0.0001,2]
[323318708,1713888801365,419.407149,0.00011001,2]
[323318709,1713888809486,559.5549709,0.0001,2]
[323318710,1713888817107,165.44,0.00010812,2]
[323318711,1713888817678,909.09098093,0.0001,2]
[323318712,1713888819823,250.0,0.00010808,2]
[323318713,1713888820100,1374.34488026,0.0001,2]
[323318714,1713888821186,3614.99,0.00010808,2]
[323318715,1713888821826,19677.20707183,0.0001,2]
[323318716,1713888823567,8622.48,0.00010787,2]
[323318717,1713888829478,559.5549709,0.0001,2]
[323318718,1713888829553,2016.85433502,0.00010955,2]
[323318719,1713888830678,1268.92,0.00010787,2]
[323318720,1713888842094,1374.34488026,0.00010808,2]
[323318721,1713888843577,10141.98151534,0.00010808,2]
[323318722,1713888844550,8174.25,0.00010827,2]
[323318723,1713888845599,559.5549709,0.00010808,2]
[323318724,1713888845645,216.57,0.00010868,2]
[323318725,1713888847075,614.36,0.0001095,2]
[323318726,1713888847279,614.36,0.0001098,2]
[323318727,1713888847523,614.36,0.0001101,2]
[323318728,1713888848917,155.0,0.00010807,2]
[323318729,1713888858076,1331.20744469,0.00010808,2]
[323318730,1713888863488,559.5549709,0.00010808,2]
[323318731,1713888871152,3051.9,0.00010309,2]
[323318732,1713888871434,3051.9,0.00010312,2]
[323318733,1713888871852,3051.9,0.00010314,2]
[323318734,1713888872085,3051.9,0.00010317,2]
[323318735,1713888872322,3051.9,0.0001032,2]
[323318736,1713888872425,13183.87195833,0.00010939,2]
[323318737,1713888872622,3051.9,0.00010322,2]
[323318738,1713888872841,3051.9,0.00010325,2]
[323318739,1713888873062,3051.9,0.00010328,2]
[323318740,1713888873710,3051.9,0.0001033,2]
[323318741,1713888873774,3051.9,0.00010333,2]
[323318742,1713888873828,3051.9,0.00010336,2]
[323318743,1713888873963,3051.9,0.00010339,2]
[323318744,1713888874187,3051.9,0.00010341,2]
[323318745,1713888874438,3051.9,0.00010344,2]
[323318746,1713888874879,3051.9,0.00010347,2]
[323318747,1713888875891,3051.9,0.00010349,2]
[323318748,1713888876502,3051.9,0.00010352,2]
[323318749,1713888876762,3051.9,0.00010355,2]
[323318750,1713888877009,3051.9,0.00010358,2]
[323318751,1713888877263,3051.9,0.0001036,2]
[323318752,1713888880808,7341.48739818,0.00010335,2]
[323318753,1713888880864,2179.73737234,0.00010335,2]
[323318754,1713888881487,559.5549709,0.00010808,2]
[323318755,1713888883557,3165.98759916,0.00010354,2]
[323318756,1713888893682,3331.34,0.00010337,2]
[323318757,1713888901558,3165.98759916,0.00010719,2]
[323318758,1713888905514,334.01457953,0.00010347,2]
[323318759,1713888917581,3047.32834157,0.00010719,2]
[323318760,1713888920826,830.62,0.00010283,2]
[323318761,1713888921717,400.0,0.00010283,2]
[323318762,1713888946096,23900.0,0.00010283,2]
[323318763,1713888967091,216.05167049,0.0001103,2]
[323318764,1713888972379,150.0,0.00010959,2]
[323318765,1713888974365,207.85411425,0.0001103,2]
[323318766,1713888983931,164.51530542,0.0001103,2]
[323318767,1713888984706,1825.05,0.00010283,2]
[323318768,1713888989763,343.3536616,0.0001103,2]
[323318769,1713888992399,200.30895975,0.0001103,2]
[323318770,1713888996530,9767.02,0.00010959,2]
[323318771,1713889015780,323.88214044,0.0001103,2]
[323318772,1713889020683,1389.27524347,0.0001103,2]
[323318773,1713889024209,2231.77,8.38e-05,2]
[323318774,1713889024649,2231.77,0.00010643,2]
[323318775,1713889028444,1264.89,0.0001038,2]
[323318776,1713889040195,10304.4,0.0001038,2]
[323318777,1713889045921,2295.98,0.00010959,2]
[323318778,1713889054492,2000.0,0.00010959,3]
[323318779,1713889067657,3021.4217,0.00010936,2]
[323318780,1713889095349,323.88214044,0.0001103,2]
[323318781,1713889097982,1389.27524347,0.0001103,2]
[323318782,1713889100476,526.4,0.00010292,2]
[323318783,1713889112924,200.0,0.00010297,2]
[323318784,1713889145397,2000.0,0.00011,2]
[323318785,1713889152254,200.0,0.00010306,2]
[323318786,1713889170495,1389.27524347,0.0001103,2]
[323318787,1713889186458,323.88214044,0.0001103,2]
[323318788,1713889195956,1843.0,0.00011,2]
[323318789,1713889196641,1783.75,0.00010289,2]
[323318790,1713889197174,748.81,0.00010372,2]
[323318791,1713889207527,18774.12,0.00010284,2]
[323318792,1713889215432,1852.42,0.00010289,2]
[323318793,1713889237358,175.02,0.00010831,2]
[323318794,1713889245053,1389.27524347,0.0001103,2]
[323318795,1713889252913,174.65,8.231e-05,2]
[323318796,1713889253139,174.65,0.00010288,2]
[323318797,1713889270963,323.88214044,0.0001103,2]
[323318798,1713889303304,459.31071612,0.0001094,2]
[323318799,1713889319532,1389.27524347,0.0001103,2]
[323318800,1713889320600,1983.86408087,0.0001103,2]
[323318801,1713889326877,250.0,0.00010298,2]
[323318802,1713889343647,323.88214044,0.0001103,2]
[323318803,1713889367636,1390.99,0.00010298,2]
[323318804,1713889382109,807.79308212,0.0001103,2]
[323318805,1713889398021,1389.27524347,0.0001103,2]
[323318806,1713889413963,315.16,0.00010321,2]
[323318807,1713889418101,323.88214044,0.0001103,2]
[323318808,1713889438292,150.0,0.00010959,2]
[323318809,1713889456702,23900.0,0.00010275,2]
[323318810,1713889463166,160.14953583,0.0001094,2]
[323318811,1713889468123,160.14953569,0.0001095,2]
[323318812,1713889473128,160.14953569,0.00010959,2]
[323318813,1713889478168,160.14953569,0.00010969,2]
[323318814,1713889478539,1389.27524347,0.0001103,2]
[323318815,1713889483170,160.14953569,0.00010979,2]
[323318816,1713889488188,160.14953569,0.00010988,2]
[323318817,1713889493131,160.14953569,0.00010998,2]
[323318818,1713889498297,160.14953569,0.00011008,2]
[323318819,1713889503236,160.14953569,0.00011017,2]
[323318820,1713889507121,323.88214044,0.0001103,2]
[323318821,1713889508131,160.14953569,0.00011027,2]
[323318822,1713889511428,200.0,0.00010972,2]
[323318823,1713889518423,2008.59,8.335e-05,2]
[323318824,1713889518803,2008.59,0.00010599,2]
[323318833,1713889564701,1483.0663,0.0001094,2]
[323318834,1713889569995,522.2,0.00010318,2]
[323318835,1713889570195,522.2,0.00010346,2]
[323318836,1713889570456,522.2,0.00010374,2]
[323318837,1713889570694,522.2,0.00010403,2]
[323318838,1713889570908,522.2,0.00010431,2]
[323318839,1713889571190,522.2,0.00010459,2]
[323318840,1713889571417,522.2,0.00010488,2]
[323318841,1713889571667,522.2,0.00010516,2]
[323318842,1713889571876,522.2,0.00010544,2]
[323318843,1713889572147,522.2,0.00010572,2]
[323318844,1713889572401,522.2,0.00010601,2]
[323318845,1713889572858,522.2,0.00010629,2]
[323318846,1713889573109,522.2,0.00010657,2]
[323318847,1713889573389,522.2,0.00010686,2]
[323318848,1713889573619,522.2,0.00010714,2]
[323318849,1713889573836,522.2,0.00010742,2]
[323318850,1713889574062,522.2,0.00010771,2]
[323318851,1713889574268,522.2,0.00010799,2]
[323318852,1713889574481,522.2,0.00010827,2]
[323318853,1713889574699,522.2,0.00010855,2]
[323318854,1713889576313,2000.0,0.00010959,3]
[323318855,1713889580839,323.88214044,0.00010741,2]
[323318856,1713889584157,200.0,0.00010315,2]
[323318857,1713889597002,578.88,0.00010315,2]
[323318858,1713889626304,400.0,0.000109,3]
[323318859,1713889669399,323.88214044,0.0001103,2]
[323318860,1713889679898,1852.42,0.00010275,2]
[323318861,1713889716870,6409.6584963,0.00025099,120]
[323318862,1713889718429,12515.74,0.00010275,2]